Workbook

Sheet Sheet3
A1: 附件
A2: 2025年太仓市水稻田生态补偿预拨资金分配表
D3: 单位：万元
A4: 序号 | B4: 区镇 | C4: 村、涉农社区 | D4: 金额
A5: 总计 | D5: =D14+D36+D54+D63+D77+D87+D97 -> 6322
A6: 1 | B6: 城厢镇 | C6: 永丰村 | D6: =ROUND(E6,0) -> 144 | E6: 144
A7: 2 | C7: 新农村 | D7: =ROUND(E7,0) -> 125 | E7: 125
A8: 3 | C8: 万丰村 | D8: 125 | E8: 125
A9: 4 | C9: 电站村 | D9: 29 | E9: 29
A10: 5 | C10: 东林村 | D10: 29 | E10: 29
A11: 6 | C11: 太丰社区 | D11: 15 | E11: 15
A12: 7 | C12: 胜泾村 | D12: 12 | E12: 12
A13: 8 | C13: 伟阳社区 | D13: 8 | E13: 8
A14: 城厢镇小计 | D14: =SUM(D6:D13) -> 487 | E14: =SUM(E6:E13) -> 488
A15: 9 | B15: 沙溪镇 | C15: 泥桥村 | D15: 169 | E15: 169
A16: 10 | C16: 虹桥村 | D16: 154 | E16: 154
A17: 11 | C17: 项桥村 | D17: 134 | E17: 134
A18: 12 | C18: 庄西村 | D18: 120 | E18: 120
A19: 13 | C19: 中荷村 | D19: 116 | E19: 116
A20: 14 | C20: 泰西村 | D20: 105 | E20: 105
A21: 15 | C21: 塘桥村 | D21: 114 | E21: 114
A22: 16 | C22: 凡山村 | D22: 81 | E22: 81
A23: 17 | C23: 渠泾村 | D23: 77 | E23: 77
A24: 18 | C24: 胜利村 | D24: 76 | E24: 76
A25: 19 | C25: 岳星村 | D25: 72 | E25: 72
A26: 20 | C26: 半泾村 | D26: 58 | E26: 58
A27: 21 | C27: 洪泾村 | D27: 56 | E27: 56
A28: 22 | C28: 松南村 | D28: 42 | E28: 42
A29: 23 | C29: 印北村 | D29: 36 | E29: 36
A30: 24 | C30: 新建村 | D30: 27 | E30: 27
A31: 25 | C31: 岳镇村 | D31: 25 | E31: 25
A32: 26 | C32: 香塘村 | D32: 22 | E32: 22
A33: 27 | C33: 涂松村 | D33: 13 | E33: 13
A34: 28 | C34: 泰东村 | D34: 5 | E34: 5
A35: 29 | C35: 太星村 | D35: 2 | E35: 2
A36: 沙溪镇小计 | D36: =SUM(D15:D35) -> 1504 | E36: =SUM(E15:E35) -> 1504
A37: 30 | B37: 浮桥镇 | C37: 浪港村 | D37: 167 | E37: 167
A38: 31 | C38: 茜泾村 | D38: 146 | E38: 146
A39: 32 | C39: 牌楼社区 | D39: =ROUND(E39,0) -> 117 | E39: 117
A40: 33 | C40: 老闸社区 | D40: 100 | E40: 100
A41: 34 | C41: 三市村 | D41: 103 | E41: 103
A42: 35 | C42: 丁泾村 | D42: 82 | E42: 82
A43: 36 | C43: 绿化村 | D43: 94 | E43: 94
A44: 37 | C44: 七丫村 | D44: 100 | E44: 100
A45: 38 | C45: 时思村 | D45: 89 | E45: 89
A46: 39 | C46: 时思社区 | D46: 79 | E46: 79
A47: 40 | C47: 马北村 | D47: 83 | E47: 83
A48: 41 | C48: 方桥村 | D48: 81 | E48: 81
A49: 42 | C49: 九曲社区 | D49: 65 | E49: 65
A50: 43 | C50: 新邵村 | D50: 58 | E50: 58
A51: 44 | C51: 浮南社区 | D51: 45 | E51: 45
A52: 45 | C52: 浮桥村 | D52: 31 | E52: 31
A53: 46 | C53: 建红社区 | D53: 9 | E53: 9
A54: 浮桥镇小计 | D54: =SUM(D37:D53) -> 1449 | E54: =SUM(E37:E53) -> 1452
A55: 47 | B55: 浏河镇 | C55: 万安村 | D55: 192 | E55: 192
A56: 48 | C56: 张桥村 | D56: 144 | E56: 144
A57: 49 | C57: 闸北村 | D57: 93 | E57: 93
A58: 50 | C58: 何桥村 | D58: 106 | E58: 106
A59: 51 | C59: 浏南村 | D59: 82 | E59: 82
A60: 52 | C60: 新闸村 | D60: 86 | E60: 86
A61: 53 | C61: 新塘村 | D61: 60 | E61: 60
A62: 54 | C62: 东仓村 | D62: 29 | E62: 29
A63: 浏河镇小计 | D63: =SUM(D55:D62) -> 792 | E63: =SUM(E55:E62) -> 793
A64: 55 | B64: 璜泾镇 | C64: 孟河村 | D64: 116 | E64: 116
A65: 56 | C65: 新联村 | D65: 120 | E65: 120
A66: 57 | C66: 杨漕村 | D66: 110 | E66: 110
A67: 58 | C67: 雅鹿村 | D67: 92 | E67: 92
A68: 59 | C68: 永乐村 | D68: 88 | E68: 88
A69: 60 | C69: 长洲村 | D69: 77 | E69: 77
A70: 61 | C70: 荣文村 | D70: 85 | E70: 85
A71: 62 | C71: 王秀村 | D71: =ROUND(E71,0) -> 78 | E71: 78
A72: 63 | C72: 新海村 | D72: 65 | E72: 65
A73: 64 | C73: 孙桥村 | D73: 63 | E73: 63
A74: 65 | C74: 新明村 | D74: 52 | E74: 52
A75: 66 | C75: 荡茜村 | D75: 33 | E75: 33
A76: 67 | C76: 新华村 | D76: 47 | E76: 47
A77: 璜泾镇小计 | D77: =SUM(D64:D76) -> 1026 | E77: =SUM(E64:E76) -> 1028
A78: 68 | B78: 双凤镇 | C78: 庆丰村 | D78: 203 | E78: 203
A79: 69 | C79: 新湖村 | D79: 63 | E79: 63
A80: 70 | C80: 黄桥村 | D80: 52 | E80: 52
A81: 71 | C81: 新闯村 | D81: 49 | E81: 49
A82: 72 | C82: 新卫村 | D82: 49 | E82: 49
A83: 73 | C83: 勤力村 | D83: 45 | E83: 45
A84: 74 | C84: 凤中村 | D84: 39 | E84: 39
A85: 75 | C85: 维新村 | D85: 25 | E85: 25
A86: 76 | C86: 泥泾村 | D86: 25 | E86: 25
A87: 双凤镇小计 | D87: =SUM(D78:D86) -> 550 | E87: =SUM(E78:E86) -> 550
A88: 77 | B88: 科教新城 | C88: 新丰社区 | D88: 64 | E88: 64
A89: 78 | C89: 南郊社区 | D89: 5 | E89: 5
A90: 79 | B90: 娄东街道 | C90: 花北社区 | D90: 50 | E90: 50
A91: 80 | B91: 陆渡街道 | C91: 小桥村 | D91: 146 | E91: 146
A92: 81 | C92: 岳南村 | D92: 100 | E92: 100
A93: 82 | C93: 红庙村 | D93: 55 | E93: 55
A94: 83 | C94: 珠江社区 | D94: 56 | E94: 56
A95: 84 | C95: 陆渡村 | D95: 23 | E95: 23
A96: 85 | C96: 洙泾村 | D96: 15 | E96: 15
A97: 高新区小计 | D97: =SUM(D88:D96) -> 514 | E97: =SUM(E88:E96) -> 513
